Cogmind - Beta 10.2 @@@ ROGUE MODE // 2021.09.26 @ 13:00:25 Player: Rathori Result: Destroyed by S-27 Virus with Autogun Performance ------------- Evolutions (4) 2000 Regions Visited (7) 1400 Robots Destroyed (58) 290 Value Destroyed (1582) 1582 Prototype IDs (6) 120 Alien Tech Used (0) 0 Bonus (24) 24 TOTAL SCORE: 5416 Bonus ------- High Alert Combat Kills 24 Cogmind --------- Core Integrity 0/850 Matter 39/300 Energy 91/100 System Corruption 5% Temperature Cool (0) Movement Core (50) Location -6/Factory Parts ------- > --- POWER (2) -------- (None) > --- PROPULSION (3) --- (None) > --- UTILITY (8) ------ Advanced Terrain Scan Processor > --- WEAPON (2) ------- (None) > --- INVENTORY (4) ---- Improved Heat Sink Improved ECM Suite Flail Peak State ------------ > --- POWER ------------ (None) > --- PROPULSION ------- Improved Flight Unit > --- UTILITY ---------- Large Storage Unit Weight Redist. System Signal Interpreter Terrain Scan Processor Advanced Terrain Scan Processor Improved Shield Generator > --- WEAPON ----------- Improved Assault Rifle Improved Assault Rifle > --- INVENTORY -------- Cryofiber Web Improved Terrain Scanner Recoil Stabilizer Improved ECM Suite Datajack Flail [Rating: 24] Favorites ----------- Power Ion Engine Engine Ion Engine Propulsion Aluminum Leg Leg Aluminum Leg Hover Unit Improved Airjet Flight Unit Improved Flight Unit Utility Large Storage Unit Device Terrain Scanner Storage Large Storage Unit Processor Signal Interpreter Protection Hardened Light Armor Plating Weapon Improved Assault Rifle Energy Gun Improved EM Shotgun Energy Cannon Advanced Beam Cannon Ballistic Gun Improved Assault Rifle Launcher Mini Grenade Launcher Impact Weapon Flail Special Melee Weapon Datajack Build | -11 -10 -9 -8 -7 -7 -7 -6 ------- Run | Scr Mat Mat Mat Fac Low Low Fac Slots Evolved 8 | . . 2 2 2 . . 2 Power 1 | . . . . 1 . . . Propulsion 1 | . . . 1 . . . . Utility 6 | . . 2 1 1 . . 2 Weapon . | . . . . . . . . Parts Attached 99 | . 5 62 16 8 2 . 6 Power 9 | . . 8 . . . . 1 Engine 9 | . . 8 . . . . 1 Core . | . . . . . . . . Reactor . | . . . . . . . . Propulsion 20 | . 1 12 5 1 . . 1 Treads . | . . . . . . . . Leg 14 | . 1 11 2 . . . . Wheel . | . . . . . . . . Hover 1 | . . . . . . . 1 Flight 5 | . . 1 3 1 . . . Utility 24 | . 2 12 5 3 2 . . Device 17 | . 1 7 5 2 2 . . Storage 2 | . 1 1 . . . . . Processor 4 | . . 3 . 1 . . . Hackware . | . . . . . . . . Protection 1 | . . 1 . . . . . Artifact . | . . . . . . . . Weapon 46 | . 2 30 6 4 . . 4 Energy Gun 3 | . . 2 1 . . . . Energy Cannon 1 | . . 1 . . . . . Ballistic Gun 27 | . 1 18 3 3 . . 2 Ballistic Cannon . | . . . . . . . . Launcher 4 | . . 3 1 . . . . Special Weapon . | . . . . . . . . Impact Weapon 9 | . 1 4 1 1 . . 2 Slashing Weapon . | . . . . . . . . Piercing Weapon . | . . . . . . . . Special Melee Weapon 2 | . . 2 . . . . . Unidentified Prototypes 6 | . . 5 . . . . 1 Parts Lost 28 | . 1 4 10 6 2 . 5 Power 3 | . . 1 1 . . . 1 Propulsion 9 | . . . 5 2 1 . 1 Utility 7 | . . 1 1 2 1 . 2 Weapon 9 | . 1 2 3 2 . . 1 Highest Loss Streak 7 | . 1 2 7 3 1 . 4 Average Slot Usage (%) 88 | . 96 98 83 52 29 23 23 Engine 8 | . 14 10 5 . . . 2 Leg 18 | . 28 21 15 . . . . Flight 1 | . . . 2 11 7 . . Device 12 | . 13 12 17 10 6 7 4 Storage 10 | . 14 11 9 6 . . . Processor 16 | . . 17 18 17 15 15 9 Protection 1 | . . 2 . . . . . Energy Gun 1 | . 7 1 . . . . . Ballistic Gun 14 | . 14 18 12 . . . 1 Launcher 1 | . . 1 2 . . . . Naked Turns . | . . . . . . . . Heaviest Build 35 | 13 27 35 26 22 1 1 18 Greatest Support 33 | 20 20 23 33 18 6 3 13 Greatest Overweight (x) 6 | . 1 3 6 5 . . 1 Average Overweight (x) . | . . . . 1 . . . Largest Inventory Capacity 10 | . 10 10 10 10 4 4 4 Average Capacity 9 | . 9 10 10 9 4 4 4 Most Carried 10 | . 8 10 10 8 4 2 4 Average Carried 8 | . 6 9 9 7 2 2 3 Final Capacity 10 | 6 10 10 10 4 4 4 4 Final Carried 10 | 6 7 10 8 4 2 2 3 Class Distribution -------------------- 81% | Mutant 18% | Scavenger-Mutant Dominant Class ---------------- Mutant | -10/Materials Mutant | -9/Materials Scavenger-Mutant | -8/Materials Mutant | -7/Factory Mutant | -7/Lower Caves Mutant | -7/Lower Caves Mutant | -6/Factory Resources | -11 -10 -9 -8 -7 -7 -7 -6 ----------- Run | Scr Mat Mat Mat Fac Low Low Fac Matter Collected 1742 | 184 97 1241 123 64 9 . 24 Remotely . | . . . . . . . . Salvage Created 2074 | . 87 1577 346 64 . . . Parts 125 | . 3 107 14 1 . . . Haulers Intercepted 5 | . . 5 . . . . . Recyclers Shooed 3 | . . 3 . . . . . Parts Field Recycled . | . . . . . . . . Retrieved Matter . | . . . . . . . . Parts Self-Destructed 4 | . . . . . 4 . . Prevented . | . . . . . . . . Kills | -11 -10 -9 -8 -7 -7 -7 -6 ------- Run | Scr Mat Mat Mat Fac Low Low Fac Combat Hostiles Destroyed 43 | . 2 30 10 1 . . . Guns 31 | . 2 24 4 1 . . . AOE 12 | . . 6 6 . . . . Classes Destroyed 10 | . 1 6 3 . . . . Worker 3 | . . 3 . . . . . Builder 1 | . . . 1 . . . . Hauler 5 | . . 5 . . . . . Recycler 3 | . . 3 . . . . . Watcher 3 | . . 3 . . . . . Swarmer 13 | . . 13 . . . . . Grunt 17 | . 2 9 6 . . . . Duelist 1 | . . . 1 . . . . Sentry 10 | . . 8 1 1 . . . Hunter 2 | . . . 2 . . . . Best Kill Streak 9 | . 2 5 9 1 . . . Combat Bots Only 8 | . 2 4 8 1 . . . Max Kills in Single Turn 4 | . 1 3 4 1 . . . Gunslinging 1 | . . 1 . . . . . Exploded 3 | . . 2 3 . . . . Melee . | . . . . . . . . Uniques/NPCs Destroyed . | . . . . . . . . Combat | -11 -10 -9 -8 -7 -7 -7 -6 -------- Run | Scr Mat Mat Mat Fac Low Low Fac Damage Taken 5102 | . 303 1503 1422 485 129 . 1260 Core 1781 | . 22 171 469 179 88 . 852 Absorbed by Shields 12 | . . . . 12 . . . Core Remaining (%) 64 | 100 91 57 14 . . 61 . Volleys Fired 182 | . 12 109 44 11 . . 6 Largest 2 | . 2 2 2 2 . . 1 Hottest 78 | . 73 78 53 46 . . 30 Shots Fired 300 | . 18 207 57 12 . . 6 Gun 285 | . 18 199 50 12 . . 6 Cannon . | . . . . . . . . Launcher 15 | . . 8 7 . . . . Special . | . . . . . . . . Kinetic 264 | . 12 184 50 12 . . 6 Thermal 6 | . 6 . . . . . . Explosive 15 | . . 8 7 . . . . Electromagnetic 15 | . . 15 . . . . . Robot Hit Streak 18 | . 9 17 18 12 . . . Robot Miss Streak 6 | . 1 6 2 1 . . . Penetration Max . | . . . . . . . . Secondary Targets 5 | . . 5 . . . . . Max Gunslinging Chain 1 | . . 1 . . . . . Shots Hit Robots 204 | . 15 133 46 10 . . . Core Hits 97 | . 4 62 26 4 1 . . Critical Hits 1 | . . 1 . . . . . Critical Kills . | . . . . . . . . Critical Parts Destroyed 1 | . . 1 . . . . . Melee Attacks 23 | . 3 7 5 2 . . 6 Impact 21 | . 3 5 5 2 . . 6 Slashing . | . . . . . . . . Piercing . | . . . . . . . . Sneak Attacks 2 | . . 2 . . . . . Combat Hostiles . | . . . . . . . . Follow-up Attacks . | . . . . . . . . Damage Inflicted 4333 | . 194 2654 1319 163 3 . . Guns 2918 | . 194 1951 610 163 . . . Cannons . | . . . . . . . . Explosions 1412 | . . 703 709 . . . . Melee . | . . . . . . . . Ramming 3 | . . . . . 3 . . Kinetic 2641 | . 131 1737 610 163 . . . Thermal 352 | . 63 289 . . . . . Explosive 1123 | . . 414 709 . . . . Electromagnetic 214 | . . 214 . . . . . Impact . | . . . . . . . . Slashing . | . . . . . . . . Piercing . | . . . . . . . . Highest Corruption 5 | . 2 . 1 2 2 2 5 Average Corruption 1 | . 1 . 1 1 2 2 5 Corruption Purged . | . . . . . . . . Effects 6 | . . . 1 . . . 5 Message Errors 3 | . . . 1 . . . 2 Energy Discharges 2 | . . . . . . . 2 Data Loss (minor) 1 | . . . . . . . 1 Overload Shots . | . . . . . . . . Overflow Damage 18 | . . 18 . . . . . Projectiles . | . . . . . . . . Explosions 18 | . . 18 . . . . . Melee . | . . . . . . . . Knockbacks . | . . . . . . . . Impact . | . . . . . . . . Kinetic . | . . . . . . . . Secondary . | . . . . . . . . Self-Inflicted Damage 245 | . . 199 45 . 1 . . Shots 5 | . . 4 1 . . . . Rammed 1 | . . . . . 1 . . Targets Rammed 1 | . . . . . 1 . . Kicked . | . . . . . . . . Crushed . | . . . . . . . . Highest Temperature 126 | . 126 102 11 . . . . Average Temperature 36 | . 70 24 7 . . . . Received Heat Transfer 1328 | . 150 354 519 98 45 . 162 Siege Activations . | . . . . . . . . Robots Corrupted . | . . . . . . . . Combat Hostiles . | . . . . . . . . Parts Fried . | . . . . . . . . Impact Corruptions . | . . . . . . . . Robots Melted . | . . . . . . . . Combat Hostiles . | . . . . . . . . Parts Melted . | . . . . . . . . Heat Transferred 335 | . 185 150 . . . . . Parts Sabotaged . | . . . . . . . . Parts Stolen . | . . . . . . . . Parts Stripped . | . . . . . . . . Power Chain Reactions 1 | . . 1 . . . . . Missiles Intercepted . | . . . . . . . . Alert | -11 -10 -9 -8 -7 -7 -7 -6 ------- Run | Scr Mat Mat Mat Fac Low Low Fac Peak Influence 454 | . 91 403 454 140 . . 159 Initial 155 | . . . 155 124 . . 70 Average 163 | . 36 174 243 127 . . 117 Maximum Alert Level 2 | . . 2 2 . . . . Low Security (%) 67 | . 100 60 57 100 . . 100 Level 1 30 | . . 39 27 . . . . Level 2 1 | . . . 15 . . . . Level 3 . | . . . . . . . . Level 4 . | . . . . . . . . Level 5 . | . . . . . . . . High Security . | . . . . . . . . Max Security . | . . . . . . . . Squads Dispatched 12 | . 2 3 4 1 . . 2 Investigation 2 | . 1 . 1 . . . . Extermination 1 | . . . . 1 . . . Reinforcement 9 | . 1 3 3 . . . 2 Assault . | . . . . . . . . Garrison . | . . . . . . . . Intercept . | . . . . . . . . Construction Impeded 2 | . . 1 1 . . . . Haulers Reinforced . | . . . . . . . . Stealth | -11 -10 -9 -8 -7 -7 -7 -6 --------- Run | Scr Mat Mat Mat Fac Low Low Fac Distress Signals 6 | . 3 3 . . . . . Communications Jammed . | . . . . . . . . Distress Signals . | . . . . . . . . Times Spotted 111 | . 4 57 27 3 9 1 10 Peak Tracking Total 10 | . 3 6 8 2 10 1 6 Tactical Retreats 11 | . . 6 2 . 2 . 1 Traps | -11 -10 -9 -8 -7 -7 -7 -6 ------- Run | Scr Mat Mat Mat Fac Low Low Fac Traps Triggered 6 | . 2 4 . . . . . Indirectly . | . . . . . . . . Trap Hack Attempts . | . . . . . . . . Triggered . | . . . . . . . . Disarmed 3 | . . 3 . . . . . Reprogrammed . | . . . . . . . . Reused . | . . . . . . . . Traps Extracted . | . . . . . . . . Installed . | . . . . . . . . Triggered 2 | . . . . . 2 . . Machines | -11 -10 -9 -8 -7 -7 -7 -6 ---------- Run | Scr Mat Mat Mat Fac Low Low Fac Machines Disabled 7 | . . 6 . . . . 1 Max in Single Turn 3 | . . 3 . . . . 1 Machines Sabotaged . | . . . . . . . . Garrisons Compromised . | . . . . . . . . Overloaded Fab Kills . | . . . . . . . . Fab Network Shutdowns . | . . . . . . . . Hacking | -11 -10 -9 -8 -7 -7 -7 -6 --------- Run | Scr Mat Mat Mat Fac Low Low Fac Machines Accessed 15 | . 3 11 1 . . . . Terminals 11 | . 2 8 1 . . . . Fabricators . | . . . . . . . . Repair Stations 2 | . . 2 . . . . . Recycling Units 2 | . 1 1 . . . . . Scanalyzers . | . . . . . . . . Garrison Access . | . . . . . . . . Total Hacks 47 | . 8 37 2 . . . . Successful 25 | . 4 21 . . . . . Failed 22 | . 4 16 2 . . . . Catastrophic 3 | . 1 2 . . . . . Database Lockouts . | . . . . . . . . Manual 35 | . 8 25 2 . . . . Terminals 33 | . 5 26 2 . . . . Fabricators . | . . . . . . . . Repair Stations 9 | . . 9 . . . . . Recycling Units 5 | . 3 2 . . . . . Scanalyzers . | . . . . . . . . Garrison Access . | . . . . . . . . Terminal Hacks 4 | . . 4 . . . . . Unreport Threat 2 | . . 2 . . . . . Disarm Traps 1 | . . 1 . . . . . Hauler Manifests 1 | . . 1 . . . . . Fabricator Hacks . | . . . . . . . . Repair Station Hacks 8 | . . 8 . . . . . Scan Component 4 | . . 4 . . . . . Repair 4 | . . 4 . . . . . Recycling Unit Hacks . | . . . . . . . . Scanalyzer . | . . . . . . . . Garrison Access Hacks . | . . . . . . . . Unauthorized Hacks 13 | . 4 9 . . . . . Terminals 8 | . 1 7 . . . . . Botnet 6 | . . 6 . . . . . Operators 2 | . 1 1 . . . . . Fabricators . | . . . . . . . . Repair Stations . | . . . . . . . . Recycling Units 5 | . 3 2 . . . . . Reject 2 | . 1 1 . . . . . Recyclers 1 | . 1 . . . . . . Mask 1 | . . 1 . . . . . Tunnel 1 | . 1 . . . . . . Scanalyzers . | . . . . . . . . Garrison Access . | . . . . . . . . Data Cores Recovered . | . . . . . . . . Used . | . . . . . . . . Hacking Detections 12 | . 3 8 1 . . . . Full Trace Events 2 | . 1 . 1 . . . . Feedback Events 1 | . . . 1 . . . . Corruption 1 | . . . 1 . . . . Feedback Blocked . | . . . . . . . . Robot Schematics Acquired . | . . . . . . . . Robots Built . | . . . . . . . . Matter . | . . . . . . . . Time . | . . . . . . . . Total Robot Build Rating . | . . . . . . . . Part Schematics Acquired . | . . . . . . . . Parts Built . | . . . . . . . . Matter . | . . . . . . . . Time . | . . . . . . . . Total Part Build Rating . | . . . . . . . . Parts Repaired 4 | . . 4 . . . . . Time 160 | . . 160 . . . . . Parts Recycled . | . . . . . . . . Recycled Matter . | . . . . . . . . Retrieved Matter . | . . . . . . . . Retrieved Components . | . . . . . . . . Parts Scanalyzed . | . . . . . . . . Part Schematics Acquired . | . . . . . . . . Parts Damaged . | . . . . . . . . Bothacking | -11 -10 -9 -8 -7 -7 -7 -6 ------------ Run | Scr Mat Mat Mat Fac Low Low Fac Used RIF Installer . | . . . . . . . . Robots Hacked 2 | . . 2 . . . . . Non-combat 2 | . . 2 . . . . . Combat . | . . . . . . . . Robot Hacks Applied 2 | . . 2 . . . . . parse_system 1 | . . 1 . . . . . check_alert 1 | . . 1 . . . . . Relay Couplers Released . | . . . . . . . . Robots Rewired . | . . . . . . . . Allies Hacked . | . . . . . . . . Hacks Repelled . | . . . . . . . . Allies | -11 -10 -9 -8 -7 -7 -7 -6 -------- Run | Scr Mat Mat Mat Fac Low Low Fac Total Allies . | . . . . . . . . Largest Group . | . . . . . . . . Highest-Rated Group . | . . . . . . . . Highest-Rated Ally . | . . . . . . . . Total Orders . | . . . . . . . . Ally Attacks . | . . . . . . . . Total Damage . | . . . . . . . . Kills . | . . . . . . . . Allies Corrupted . | . . . . . . . . Allies Melted . | . . . . . . . . Intel | -11 -10 -9 -8 -7 -7 -7 -6 ------- Run | Scr Mat Mat Mat Fac Low Low Fac Robot Analysis Total . | . . . . . . . . Derelict Logs Recovered 1 | . . . . . 1 . . Drone Launches . | . . . . . . . . Drone Recoveries . | . . . . . . . . Exploration | -11 -10 -9 -8 -7 -7 -7 -6 ------------- Run | Scr Mat Mat Mat Fac Low Low Fac Turns Passed 5457 | . 413 3812 473 375 151 20 213 Spaces Moved 3080 | 1 232 1992 175 146 251 39 244 Core 266 | . . . 8 91 8 39 120 Treads . | . . . . . . . . Legs 2339 | 1 232 1992 114 . . . . Wheels . | . . . . . . . . Hover 124 | . . . . . . . 124 Flight 351 | . . . 53 55 243 . . Fastest Speed 32 | 120 120 120 32 34 35 50 50 Average Speed 128 | 120 140 148 98 149 35 50 69 Slowest Speed 350 | 120 150 210 350 300 50 50 110 Overloaded Moves . | . . . . . . . . Propulsion Burnouts . | . . . . . . . . Robots Hopped 2 | . . . 1 1 . . . Cave-ins Triggered 1 | . . . . . . . 1 Exploration Rate (%) 28 | 2 38 98 21 2 46 10 7 Regions Visited 7 Branch Regions 2 Pre-discovered Areas 1 | . 1 . . . . . . Known Exits Taken 5 | . . 1 1 1 1 1 . Unknown Exits Taken 2 | 1 1 . . . . . . Scrap Searched . | . . . . . . . . Spaces Dug 17 | . 2 4 4 1 . . 6 Terrain Destroyed 135 | . 2 102 24 1 . . 6 Melee 17 | . 2 4 4 1 . . 6 Projectile . | . . . . . . . . AOE 118 | . . 98 20 . . . . Terrain Rammed . | . . . . . . . . Walls Destroyed . | . . . . . . . . Machines Disabled . | . . . . . . . . Actions | -11 -10 -9 -8 -7 -7 -7 -6 --------- Run | Scr Mat Mat Mat Fac Low Low Fac Total 4229 | . 298 2620 404 286 312 38 271 Wait 777 | . 35 402 162 114 59 . 5 Move 3070 | . 231 1991 172 143 251 38 244 Hop 2 | . . . 1 1 . . . Pick Up 25 | . 6 15 2 . . . 2 Fast Attach 32 | . 1 21 4 4 . . 2 Attach 17 | . 1 4 4 3 2 . 3 Detach 6 | . . . 1 3 . . 2 Swap 50 | . 3 37 8 1 . . 1 Drop 45 | . 6 34 1 4 . . . Fire 182 | . 12 109 44 11 . . 6 Melee 23 | . 3 7 5 2 . . 6 Ram . | . . . . . . . . Kick . | . . . . . . . . Crush . | . . . . . . . . Escape Stasis . | . . . . . . . . Rewire . | . . . . . . . . Trap . | . . . . . . . . Miscellaneous . | . . . . . . . . Route ------- -11/Scrapyard -10/Materials -9/Materials (discovered 4 exits: *Mat x3 / *Min) -8/Materials -7/Factory -7/Lower Caves -7/Lower Caves -6/Factory (discovered 2 exits: *Low x2) History --------- Turn | Location | Event 1 | -11/Scrapyard | Discovered new exit (range 0) 1 | -11/Scrapyard | Entered Materials 114 | -10/Materials | Met 8R-AWN 302 | -10/Materials | Build established: Mutant 393 | -10/Materials | Discovered new exit (range 13) 414 | -10/Materials | Entered another Materials area 414 | -9/Materials | Evolved 2 slots: Utility x2 531 | -9/Materials | Repaired Ion Engine 990 | -9/Materials | Discovered new exit (range 12) 1553 | -9/Materials | Build established: Scavenger-Mutant 1588 | -9/Materials | Discovered new exit (range 16) 1609 | -9/Materials | Identified exit to Materials 1999 | -9/Materials | Build established: Mutant 2411 | -9/Materials | Repaired Imp. Assault Rifle 2463 | -9/Materials | Repaired Imp. Assault Rifle 2497 | -9/Materials | Repaired Imp. Ion Engine 2564 | -9/Materials | Discovered exit to Materials (range 8) 3291 | -9/Materials | Identified exit to Mines 3905 | -9/Materials | Discovered exit to Materials (range 14) 4226 | -9/Materials | Entered another Materials area 4226 | -8/Materials | Evolved 2 slots: Propulsion x1, Utility x1 4557 | -8/Materials | Destroyed 8 combat bots 4644 | -8/Materials | Core integrity fell below 50% 4687 | -8/Materials | Core integrity fell below 20% 4689 | -8/Materials | Discovered new exit (range 10) 4698 | -8/Materials | Identified exit to Factory 4699 | -8/Materials | Entered Factory 4699 | -7/Factory | Evolved 2 slots: Power x1, Utility x1 4705 | -7/Factory | Lost 7 parts (3n1u3w) 4861 | -7/Factory | Discovered new exit (range 3) 4976 | -7/Factory | Lost 3 parts (2u1w) 5073 | -7/Factory | Identified exit to Lower Caves 5074 | -7/Factory | Entered Lower Caves 5160 | -7/Lower Caves | Attracted the attention of an 0b10 outpost 5197 | -7/Lower Caves | Discovered new exit (range 12) 5224 | -7/Lower Caves | Identified exit to Lower Caves 5225 | -7/Lower Caves | Entered another Lower Caves area 5242 | -7/Lower Caves | Discovered new exit (range 6) 5244 | -7/Lower Caves | Identified exit to Factory 5245 | -7/Lower Caves | Entered Factory 5245 | -6/Factory | Evolved 2 slots: Utility x2 5246 | -6/Factory | Identified exit to Lower Caves 5266 | -6/Factory | Discovered exit to Lower Caves (range 9) 5332 | -6/Factory | Crushed by falling debris 5443 | -6/Factory | Core integrity fell below 50% 5450 | -6/Factory | Core integrity fell below 20% 5458 | -6/Factory | Destroyed by S-27 Virus with Autogun Last Messages --------------- 05341_ U-05 Engineer builds a Wall. 05347_ O-24 Administrator: "IFF HANDSHAKE FAILED. SECURING TERMINAL." 05353_ ALERT: Hostiles spotted, dispatching reinforcements to Terminal F015. 05360_ O:O=MA7KE|YTO<0RKCUSSMN77Y6QNA7%OIB6 05381_ System corrupted: Energy discharge (-117). 05390_ Imp. Terrain Scanner destroyed. 05399_ Slug penetrates Neutrino Reactor. 05413_ Angular Momentum Engine destroyed. 05422_ Coil Gun destroyed. 05422_ K-01 Serf collects debris. 05425_ #M1R1GXD:Q%KEAKNHDXPNJLN4N2NIZGGJ/DNY 05425_ K-01 Serf collects debris. 05438_ Imp. Airjet destroyed. 05438_ K-01 Serf collects debris. 05447_ S-27 Virus destroyed. 05448_ K-01 Serf collects debris. 05450_ Acquired 24 matter. 05451_ System corrupted: Energy discharge (-29). 05452_ K-01 Serf collects debris. Map ----- +----------------------------------------------------+ | ???# #/ # """" T# + #?? | | #??# # # """" "# # ##? | | ???# + # """" "# # #?? | | ???# # # "# # ### | | ???# # # # # #?? | | ?### # #####+#### #######+######?? | | # ## #??# | | # ## ##?? | | # ## """" #??? | | ######### """" ##?? | | ######### """" #??# | | ? #### #### ######### #########+####?#? | | ??###?#?## ######### """" ####?? ????? ? ?? | | ??#??# #??# """" #### ?"?"""???? ? | | ???#?????## ^"""" ##???? ? ?? ???? | | ?????# ???# ##?#?""??""?""??? | | ?"???#?#??# """" ###??? ? ?????? ? | | ??????????# """" #??#?? ?? ????? | | ? ?#????#?############### """" #?##?????? ?? ??? | | ????? ????? ? ####??##?# w##?# ? ?????????? | | ???????? ? ? ?########## """" #??#??????? ??? ? | | ?????"?"???? ??# # """" ####? ??????????? | | ???????????????# # ^"""" ##?# ?? ????????? | | ????????????? # # ##?? ? ?? ?????? | | ?????????"?? ?# # """" ##???#?#????????? | | ?????????? ? ?# #@ """" #?##??##????#???? | | ???????????????# # """" #####?#???#?????? | | ???????????? # = # #?#?????????? | | ???????????????# = #s "T" ###?????????? | | ?????????????? # * / """ ##?????#????? | | ???????????????# # [ #?#?????????? | | ???????????????# # ##??????????? | | ???????????????# ##########+#+#######?????? | | ??????????? ???# #?#[ #?????? | | ??????????? ???# ### """ """ """ #?????? | | ???????????????# ### """ """ """ #?????? | | ???????????????# #?# """ """ """ #?????? | | ???????????? ?# ### ##????? | | ??????????????## #?# """ """ """ #?????? | | ???????????????############ """ """ """ #?????? | | ??????????????#???#???????# """ """ """ #?????? | | ??????????????????????????# #?????? | | ???????????????????????#??##################?????? | | ???????????????????#????????#????????????????????? | | ????????????????????????#????????????????????????? | | ?????????????????????????????#??????#????????????? | | ?????????????????????????????????????????????????? | | ?????????????????????????????????????????????????? | | ?????????????????????????????????????????????????? | | ?????????????????????????????????????????????????? | +----------------------------------------------------+ Best States ------------- Heat Dissipation 37 Energy Generation 18 Energy Capacity 365 Matter Stores 300 Matter Capacity 300 Sight Range 16 Robot Scan Range 16 Terrain Scan Range 16 Terrain Scan Density 285 Additional Mass Support 6 Armor Coverage 150 Evasion (%) 63 Item Schematics ----------------- None Robot Schematics ------------------ None Fabricated ------------ Nothing Alien Tech Used ----------------- None Achievements -------------- None Challenges ------------ None Game ------ Seed ActuatorNuclearRedistributor Manual? 0 Play Time 01:08:45 Cumulative 38.8 hours Start 2021.09.26 @ 11:00:56 End 2021.09.26 @ 13:00:25 Sessions 3 Manual Loads 0 Difficulty Rogue Special Mode None Game No. 32 Rogue 31 Adventurer 1 Explorer 0 Win Type - Total 0 Types 0/0/0/0/0/0/0/0/0 Lore% 36 Gallery% 37 Achievement% 33 Wizard Run 0 Options --------- ASCII 0 Keyboard 0 Movement Mouse Keybinds 0 Fullscreen 2 Font 24/Smallcaps Map View 76x50 Tactical HUD 1 Map Filters NONE Filters NONE Steam 1 RUN: 38e25508-e22d-40dc-9f17-634acc18e83c